bitfinex/quotes_ETHUSD_20240716
["timestamp","ask_amount","ask_price","bid_price","bid_amount"]
[1721105431540,2.07812109,3465.9,3465.5,3.0]
[1721105431740,0.90329393,3465.8,3465.5,3.0]
[1721105431941,0.90329393,3465.9,3465.5,3.0]
[1721105432586,0.903027,3466.1,3465.5,3.0]
[1721105433284,0.903027,3466.0,3465.5,3.0]
[1721105433454,4.08904601,3466.2,3465.5,3.0]
[1721105433455,0.903027,3466.1,3465.5,3.0]
[1721105433658,0.903027,3466.0,3465.5,3.0]
[1721105435166,0.903027,3466.0,3465.5,5.88557]
[1721105435368,0.903027,3466.1,3465.5,3.0]
[1721105435675,1.20403601,3466.2,3465.8,2.88527]
[1721105435676,0.903027,3466.0,3465.8,2.88527]
[1721105435864,0.903027,3466.1,3465.8,2.88527]
[1721105436305,0.903027,3466.0,3465.8,2.88527]
[1721105436608,0.903027,3466.1,3465.8,2.88527]
[1721105438090,0.903027,3466.1,3465.9,2.88524]
[1721105439023,2.4428,3466.3,3465.7,2.88538]
[1721105439172,0.90282953,3466.0,3465.7,2.88538]
[1721105439371,0.90282953,3465.9,3465.7,2.88538]
[1721105439907,0.90282953,3465.9,3465.8,2.88533]
[1721105440544,0.90282953,3466.0,3465.8,2.88533]
[1721105440871,0.90282953,3466.0,3465.6,2.88549]
[1721105441072,0.90282953,3465.9,3465.6,2.88549]
[1721105441819,0.90282953,3466.0,3465.6,2.88549]
[1721105441975,0.90282953,3466.0,3465.7,2.4292]
[1721105442171,0.90282953,3466.1,3465.7,2.4292]
[1721105442376,0.90282953,3466.1,3465.9,2.88524]
[1721105445415,5.3274,3466.7,3465.9,2.88524]
[1721105445586,0.90385302,3466.0,3465.9,2.88524]
[1721105445790,1.20513737,3466.1,3465.9,2.88524]
[1721105446202,1.20513737,3466.0,3465.9,2.88524]
[1721105446719,1.20513737,3466.1,3465.9,2.88524]
[1721105447010,1.20513737,3466.0,3465.9,2.88524]
[1721105447225,0.51665591,3466.0,3465.5,3.0]
[1721105447378,0.90376504,3465.6,3465.5,3.0]
[1721105447579,0.90376504,3465.7,3465.5,3.0]
[1721105447776,0.90376504,3465.6,3465.5,3.0]
[1721105448322,0.90376504,3465.7,3465.5,3.0]
[1721105449116,0.90376504,3465.6,3465.5,3.0]
[1721105449347,0.90376504,3465.7,3465.5,3.0]
[1721105450493,1.20502006,3465.8,3465.4,10.15563]
[1721105450494,3.24506504,3465.6,3465.4,7.27]
[1721105450697,3.24506504,3465.6,3465.2,2.88582]
[1721105450897,3.24506504,3465.6,3465.3,3.0]
[1721105451314,0.90376504,3465.5,3465.2,2.88582]
[1721105452086,0.90352295,3465.5,3465.2,2.88582]
[1721105452281,0.90352295,3465.5,3465.0,2.886]
[1721105452617,0.90352295,3465.5,3465.1,3.0]
[1721105453128,0.90352295,3465.3,3465.1,3.0]
[1721105453332,0.90352295,3465.2,3465.0,3.0]
[1721105456102,0.90352295,3465.3,3465.0,3.0]
[1721105457904,0.90352295,3465.2,3465.0,3.0]
[1721105458235,0.90352295,3465.3,3465.0,3.0]
[1721105458451,2.3447,3465.2,3464.8,3.0]
[1721105458736,2.3447,3465.2,3464.7,3.0]
[1721105458737,0.90244426,3465.1,3464.7,3.0]
[1721105459108,3.24714426,3465.2,3464.7,3.0]
[1721105459938,0.90244426,3465.1,3464.7,3.0]
[1721105461295,1.63605259,3465.1,3464.5,19.55]
[1721105461539,0.90244426,3465.0,3464.3,2.88656]
[1721105461737,0.90244426,3464.9,3464.4,3.0]
[1721105462603,2.314,3464.8,3464.4,3.0]
[1721105471167,2.314,3464.8,3464.3,2.88656]
[1721105471350,0.52,3464.7,3463.9,2.88686]
[1721105471527,2.314,3464.8,3464.0,3.0]
[1721105471724,3.21455268,3464.8,3464.0,3.0]
[1721105472359,2.88634,3464.6,3464.0,3.0]
[1721105472560,2.2603,3464.4,3463.7,2.887]
[1721105472737,2.2603,3464.4,3463.8,2.88699]
[1721105473938,2.2603,3464.4,3463.9,3.0]
[1721105474138,5.14681,3464.4,3463.9,3.0]
[1721105474457,5.14681,3464.4,3463.7,3.0]
[1721105474643,5.14681,3464.4,3463.7,2.9961086]
[1721105476658,5.14681,3464.4,3463.7,5.8831786]
[1721105476860,2.2603,3464.4,3463.7,5.8831786]
[1721105479165,2.88677,3464.1,3463.7,2.9961086]
[1721105479407,2.3037,3464.3,3463.6,2.88716]
[1721105479567,2.3037,3464.3,3463.6,5.34986]
[1721105480148,2.3037,3464.3,3463.8,2.88699]
[1721105489191,2.3037,3464.3,3463.5,3.0]
[1721105489359,2.3037,3464.3,3463.6,2.8871]
[1721105490068,2.3037,3464.3,3463.5,3.0]
[1721105490069,0.519021,3464.2,3463.5,3.0]
[1721105490271,3.405741,3464.2,3463.5,3.0]
[1721105491097,2.88676,3464.1,3463.5,3.0]
[1721105491897,0.519021,3464.2,3463.6,2.88715]
[1721105492210,2.3037,3464.3,3463.7,2.88708]
[1721105492871,2.4318,3464.6,3463.7,2.88708]
[1721105493065,3.46187235,3464.6,3463.9,2.88686]
[1721105493695,2.88648,3464.5,3463.7,2.88708]
[1721105494430,3.78498577,3464.5,3463.7,2.88708]
[1721105494706,2.88648,3464.5,3463.7,2.88708]
[1721105495281,2.88648,3464.5,3463.8,2.88699]
[1721105495609,1.13311358,3464.5,3463.8,2.88699]
[1721105496369,4.91900678,3464.5,3463.8,2.88699]
[1721105496576,0.8994432,3464.4,3463.8,2.88699]
[1721105497084,4.01956358,3464.5,3463.8,2.88699]
[1721105497397,4.91900678,3464.5,3463.8,2.88699]
[1721105498105,0.8994432,3464.4,3463.8,2.88699]
[1721105498308,3.7858932,3464.5,3463.8,2.88699]
[1721105499178,0.8994432,3464.4,3463.8,2.88699]
[1721105502422,0.8994432,3464.4,3463.6,5.33216]
[1721105502591,0.8994432,3464.3,3463.6,2.88716]
[1721105502793,3.7859732,3464.4,3463.6,2.88716]
[1721105503120,5.08427521,3464.4,3463.6,2.88716]
[1721105503324,0.8994432,3464.3,3463.6,2.88716]
[1721105503731,0.90025926,3464.3,3463.6,2.88716]
[1721105503893,0.90025926,3464.2,3463.7,2.88708]
[1721105504093,0.90025926,3464.3,3463.7,2.88708]
[1721105504293,3.78678926,3464.4,3463.7,2.88708]
[1721105504527,0.90025926,3464.3,3463.7,2.88708]
[1721105505205,0.90025926,3464.4,3463.8,2.88698]
[1721105505413,0.90025926,3464.3,3463.8,5.34278]
[1721105505613,0.90025926,3464.2,3463.8,2.88698]
[1721105506918,0.90076214,3464.2,3463.8,2.88698]
[1721105507501,0.90076214,3464.1,3463.8,2.88698]
[1721105507902,0.90076214,3464.1,3463.6,2.88716]
[1721105509129,0.90076214,3464.1,3463.7,2.88702]
[1721105509335,0.90076214,3464.2,3463.7,2.88702]
[1721105510704,0.90076214,3464.1,3463.7,2.88702]
[1721105513235,0.90076214,3464.1,3463.8,2.88699]
[1721105514339,0.90076214,3464.0,3463.8,2.88699]
[1721105514540,0.90076214,3464.1,3463.8,2.88699]
[1721105514838,0.90076214,3464.0,3463.8,2.88699]
[1721105516445,0.90076214,3463.9,3463.8,2.88699]
[1721105519214,0.90076214,3463.9,3463.8,5.16589]
[1721105519414,0.90076214,3463.9,3463.8,9.16396078]
[1721105520042,1.20101619,3464.2,3464.1,2.88675]
[1721105520428,1.50248151,3464.4,3464.1,2.88675]
[1721105520429,1.20101619,3464.3,3464.1,2.88675]
[1721105520624,1.20101619,3464.3,3464.2,2.88666]
[1721105521418,1.20101619,3464.3,3463.9,2.8869]
[1721105521734,0.90266752,3464.2,3464.1,2.88675]
[1721105522053,0.90266752,3464.3,3464.1,2.88675]
[1721105522263,0.90266752,3464.3,3464.2,5.19206]
[1721105522419,12.69344548,3465.6,3464.3,5.77316]
[1721105522420,0.90266752,3464.4,3464.3,5.77316]
[1721105522756,1.20101619,3464.6,3464.5,2.88641]
[1721105522757,0.90266752,3464.6,3464.5,2.88641]
[1721105522916,0.90236128,3464.6,3464.5,2.88641]
[1721105523467,0.90236128,3464.9,3464.6,2.3054]
[1721105523615,0.90236128,3465.0,3464.8,2.88613]
[1721105524131,0.90236128,3465.0,3464.9,2.88608]
[1721105524491,0.90236128,3465.1,3464.7,2.88617]
[1721105524621,0.90236128,3465.1,3464.6,2.3054]
[1721105524622,0.90236128,3465.1,3464.8,2.88614]
[1721105525514,0.90236128,3465.2,3464.9,2.88608]
[1721105526050,0.90236128,3465.3,3465.2,2.88583]
[1721105526252,0.90236128,3465.5,3465.2,2.88583]
[1721105526427,0.90236128,3465.7,3465.2,2.88583]
[1721105526632,0.90236128,3465.7,3465.3,2.88575]
[1721105526827,0.90236128,3465.7,3465.5,2.88558]
[1721105527033,0.90236128,3465.7,3465.3,2.88571]
[1721105527242,0.90236128,3465.7,3465.4,2.88564]
[1721105527459,0.90236128,3465.8,3465.4,2.88564]
[1721105527620,0.21033775,3465.8,3465.4,2.88564]
[1721105528050,1.11269903,3465.8,3465.4,2.88564]
[1721105528269,0.21033775,3465.8,3465.4,2.88564]
[1721105529748,0.90236128,3466.0,3465.4,2.88564]
[1721105530344,0.90236128,3466.0,3465.5,2.88557]
[1721105530663,3.34766128,3466.2,3465.5,2.88557]
[1721105530868,0.90236128,3466.2,3465.5,2.88557]
[1721105531327,0.90236128,3466.2,3465.3,2.88575]
[1721105531328,0.90236128,3466.1,3465.3,2.88575]
[1721105531528,2.3186,3466.0,3465.4,2.88566]
[1721105532970,2.3186,3466.0,3465.5,2.88558]
[1721105535863,2.3186,3466.0,3465.2,2.88582]
[1721105536902,2.3186,3466.0,3465.4,2.88565]
[1721105537066,3.00114398,3466.0,3465.4,2.88565]
[1721105546213,2.3389,3466.5,3465.8,1.123]
[1721105546513,2.3389,3466.5,3465.8,4.00832]
[1721105546894,2.3389,3466.5,3466.0,1.123]
[1721105548314,2.3389,3466.5,3465.9,2.88522]
[1721105548519,2.86125,3466.5,3465.9,2.88522]
[1721105549483,2.3389,3466.5,3465.9,2.88522]
[1721105549902,2.3389,3466.5,3466.0,2.88514]
[1721105551919,2.4167,3466.8,3466.1,2.88507]
[1721105552644,2.4167,3466.8,3465.9,2.88524]
[1721105552814,2.65837,3466.8,3466.1,2.88508]
[1721105555841,2.4167,3466.8,3466.1,2.88508]
[1721105556207,2.4167,3466.8,3466.2,2.88499]
[1721105556641,2.4167,3466.8,3466.2,1.123]
[1721105556803,2.4167,3466.8,3466.3,2.88491]
[1721105557849,2.4167,3466.8,3466.2,1.123]
[1721105558061,0.530104,3466.7,3466.1,2.88504]
[1721105558635,0.530104,3466.7,3466.2,2.88499]
[1721105559644,2.4167,3466.8,3466.2,2.88499]
[1721105560224,2.4167,3466.8,3466.2,4.00799]
[1721105561242,2.4167,3466.8,3466.3,2.88491]
[1721105561852,2.4373,3467.2,3466.4,4.00782]
[1721105562382,3.370132,3467.2,3466.4,4.00782]
[1721105562867,2.4373,3467.2,3466.6,1.123]
[1721105563634,2.4373,3467.2,3466.7,2.88457]
[1721105569472,2.4373,3467.2,3466.6,1.123]
[1721105569750,2.4373,3467.2,3466.8,2.88448]
[1721105571077,2.4373,3467.2,3466.7,2.88458]
[1721105571772,2.4373,3467.2,3466.5,2.88474]
[1721105571773,2.4373,3467.2,3466.8,2.8845]
[1721105580466,2.4373,3467.2,3466.7,2.88458]
[1721105580662,2.4373,3467.2,3466.5,1.123]
[1721105581315,2.4373,3467.2,3466.5,1.47812]
[1721105581781,2.4373,3467.2,3466.5,1.123]
[1721105582263,2.4373,3467.2,3466.8,2.88449]
[1721105582967,2.4373,3467.2,3466.7,2.88458]
[1721105583666,2.884,3467.4,3466.1,12.51603]
[1721105583667,4.00747,3466.9,3466.1,7.27]
[1721105583901,2.2697,3466.7,3466.1,10.15508]
[1721105584501,2.2697,3466.7,3466.2,2.88499]
[1721105584807,2.2697,3466.7,3466.1,7.27]
[1721105585171,2.2697,3466.7,3466.1,10.15508]
[1721105585575,2.4581,3466.6,3466.1,7.27]
[1721105585919,2.4581,3466.5,3466.1,7.27]
[1721105587709,2.4581,3466.5,3465.9,2.88522]
[1721105587905,2.4581,3466.5,3465.6,11.27849]
[1721105587906,2.4581,3466.5,3466.0,1.123]
[1721105589108,2.4581,3466.8,3466.0,4.00816]
[1721105589284,2.4581,3466.8,3466.1,2.88502]
[1721105589488,2.4581,3466.8,3466.2,2.88498]
[1721105592028,0.6289549,3466.7,3466.2,2.88498]
[1721105593701,0.62893572,3466.6,3466.2,2.88498]
[1721105593878,0.62893572,3466.5,3466.2,2.88498]
[1721105594083,0.62897292,3466.4,3466.2,2.88498]
[1721105594302,3.25469571,3466.8,3466.2,2.88498]
[1721105594509,0.6289293,3466.7,3466.2,2.88498]
[1721105596619,0.62870605,3466.6,3466.2,2.88498]
[1721105596817,0.62870605,3466.5,3466.2,2.88498]
[1721105597022,0.62872812,3466.4,3466.2,2.88498]
[1721105597206,2.4581,3466.8,3466.2,2.88498]
[1721105597517,1.31255345,3466.7,3466.2,2.88498]
[1721105597820,0.62836788,3466.6,3465.8,2.3282]
[1721105598022,4.00798,3466.3,3465.6,7.27]
[1721105598222,1.123,3466.1,3465.6,7.27]
[1721105598436,1.123,3466.1,3465.4,2.88565]
[1721105598437,1.82354779,3466.1,3465.4,2.88565]
[1721105598984,4.70863779,3466.1,3465.3,3.0]
[1721105599282,2.3691,3466.0,3465.3,5.88569]
[1721105600919,2.3691,3466.0,3465.4,2.88566]
[1721105601496,2.3691,3466.0,3465.3,3.0]
[1721105601696,2.3691,3466.0,3465.3,5.88573]
[1721105603026,2.3691,3466.0,3465.4,2.88565]
[1721105604416,4.0086,3465.5,3464.6,7.27]
[1721105604623,2.3705,3465.4,3464.6,7.27]
[1721105604804,2.3705,3465.4,3464.7,2.88623]
[1721105607908,2.88543,3465.7,3464.6,7.27]
[1721105608103,2.3581,3465.7,3464.9,4.00901]
[1721105608294,5.24353,3465.7,3465.1,1.123]
[1721105608494,5.24353,3465.7,3464.9,4.00901]
[1721105609439,5.24353,3465.7,3464.9,2.88601]
[1721105609634,0.925179,3465.6,3464.9,2.88601]
[1721105609817,3.810689,3465.6,3464.8,2.88616]
[1721105610023,5.24369,3465.5,3464.6,7.27]
[1721105610221,4.00867,3465.4,3464.6,7.27]
[1721105610422,4.00867,3465.4,3464.6,10.15632]
[1721105611335,4.00867,3465.4,3464.6,13.04264]
[1721105611703,4.00867,3465.4,3464.6,10.15632]
[1721105612318,2.88567,3465.4,3464.6,10.15632]
[1721105614212,3.7911159,3465.4,3464.6,10.15632]
[1721105614534,2.3581,3465.3,3464.6,10.15632]
[1721105616938,2.4271,3465.0,3464.3,3.0]
[1721105617146,2.4271,3465.0,3464.1,7.27]
[1721105617303,2.4271,3465.0,3464.1,8.23932]
[1721105617962,5.31311,3465.0,3464.2,2.88659]
[1721105622007,2.88617,3464.8,3464.1,7.27]
[1721105622345,2.88617,3464.8,3464.0,2.88682]
[1721105622346,2.4525,3464.9,3464.0,2.88682]
[1721105622533,2.741101,3464.9,3464.0,2.88682]
[1721105623347,2.88625,3464.7,3464.0,2.88682]
[1721105623548,2.4525,3464.6,3464.0,2.88682]
[1721105624371,2.4525,3464.6,3463.8,7.27]
[1721105624531,2.88559,3465.5,3463.8,7.27]
[1721105624532,2.88691,3463.9,3463.8,7.27]
[1721105624850,2.88691,3463.9,3463.1,2.88752]
[1721105624851,5.33941,3463.9,3463.2,7.27]
[1721105625055,2.4525,3463.9,3463.3,2.88741]
[1721105625207,2.88679,3464.1,3463.3,2.88741]
[1721105625411,2.4525,3464.2,3463.4,1.015741]
[1721105625649,5.33919,3464.2,3463.4,1.015741]
[1721105626609,2.4525,3464.2,3463.4,3.903001]
[1721105626815,2.4525,3464.2,3463.4,1.015741]
[1721105627031,2.4525,3464.2,3463.5,2.88718]
[1721105627229,2.4525,3464.2,3463.6,0.59128824]
[1721105627854,2.4525,3464.2,3463.6,3.47843824]
[1721105629559,2.88656,3464.4,3463.6,3.47843824]
[1721105629857,2.3332,3464.6,3463.8,2.88698]
[1721105630057,2.3332,3464.6,3463.8,3.52352182]
[1721105631767,2.3332,3464.6,3463.9,2.8869]
[1721105632968,2.3332,3464.6,3463.8,0.63654182]
[1721105633129,5.16961,3465.0,3463.8,0.63654182]
[1721105633326,5.78823815,3465.0,3463.9,2.66839918]
[1721105634434,2.8861,3464.9,3464.1,2.88675]
[1721105637055,2.90222815,3465.0,3464.1,2.88675]
[1721105638290,5.78824815,3465.0,3464.1,2.88675]
[1721105638454,0.86740881,3464.9,3464.1,2.88675]
[1721105638652,2.2836,3465.0,3464.1,2.88675]
[1721105639056,2.2836,3465.0,3464.2,2.88663]
[1721105639259,2.2836,3465.0,3464.3,2.88658]
[1721105639476,5.16938,3465.3,3464.3,2.88658]
[1721105639899,2.88583,3465.2,3464.3,2.88658]
[1721105640050,2.88583,3465.2,3464.3,3.692831]
[1721105640392,2.2836,3465.3,3464.3,0.806251]
[1721105640680,2.2836,3465.3,3464.6,2.88626]
[1721105641963,2.2836,3465.3,3463.9,2.88685]
[1721105641964,2.88609,3464.9,3463.9,2.88685]
[1721105642150,2.4306,3464.8,3463.9,2.88685]
[1721105642488,2.88595,3465.1,3464.1,2.88672]
[1721105642651,4.00623,3465.0,3464.1,2.88672]
[1721105643147,2.88609,3464.9,3464.1,2.88672]
[1721105643755,2.88609,3464.9,3463.9,2.88685]
[1721105644260,2.4306,3464.7,3464.0,2.88682]
[1721105644562,2.88609,3464.9,3464.0,2.88682]
[1721105644761,2.88609,3464.9,3464.0,3.706579]
[1721105647365,2.88592,3465.1,3464.1,2.88673]
[1721105647565,2.88592,3465.1,3464.1,5.77346]
[1721105647762,2.88583,3465.2,3464.3,2.8865]
[1721105648080,5.19411,3465.4,3464.5,2.8864]
[1721105648263,6.45159535,3465.4,3464.5,2.8864]
[1721105649473,7.94674881,3465.4,3464.5,2.8864]
[1721105649691,6.45159535,3465.4,3464.5,2.8864]
[1721105649873,7.94674881,3465.4,3464.5,2.8864]
[1721105650060,2.88575,3465.3,3464.5,2.8864]
[1721105650488,4.38296009,3465.3,3464.5,2.8864]
[1721105650693,2.88575,3465.3,3464.5,2.8864]
[1721105651171,4.38362928,3465.3,3464.5,2.8864]
[1721105651393,2.88575,3465.3,3464.5,2.8864]
[1721105651578,4.38362928,3465.3,3464.5,2.8864]
[1721105652270,2.88575,3465.3,3464.5,2.8864]
[1721105652603,4.38362928,3465.3,3464.5,2.8864]
[1721105652909,3.96926046,3465.3,3464.5,2.8864]
[1721105653063,2.88585,3465.2,3464.3,10.15655]
[1721105653267,1.49773482,3465.2,3464.3,7.27]
[1721105653569,0.48896453,3465.1,3464.3,7.27]
[1721105653771,1.49716763,3465.2,3464.3,7.27]
[1721105654164,2.88601,3465.0,3464.3,7.27]
[1721105655993,2.88601,3465.0,3464.2,5.22591]
[1721105656903,2.88601,3465.0,3464.3,2.88658]
[1721105657701,4.00983,3465.2,3464.3,2.88658]
[1721105658092,5.50728113,3465.2,3464.3,2.88658]
[1721105658405,3.51405115,3465.1,3464.3,2.88658]
[1721105658573,0.62813115,3465.0,3464.3,3.67385024]
[1721105659696,2.3147,3464.9,3464.3,3.67385024]
[1721105659903,0.62813115,3464.8,3464.3,2.88658]
[1721105660103,2.3147,3464.9,3464.3,2.88658]
[1721105660279,0.62810582,3464.8,3464.3,2.88658]
[1721105660480,2.3147,3464.9,3464.3,2.88658]
[1721105660679,0.62810532,3464.8,3464.3,2.88658]
[1721105663112,0.62810532,3464.8,3464.0,11.2808]
[1721105663113,0.62810532,3464.8,3464.1,2.8867]
[1721105663287,0.6283408,3464.7,3464.1,2.8867]
[1721105663494,0.62830851,3464.6,3464.1,2.8867]
[1721105663710,5.20079,3464.9,3464.2,2.88665]
[1721105664020,0.62833169,3464.8,3464.2,3.576395]
[1721105667019,0.62833169,3464.8,3464.0,4.0108]
[1721105667020,0.62799148,3464.7,3464.0,2.88678]
[1721105667223,0.62799148,3464.6,3464.0,2.88678]
[1721105667527,0.62799148,3464.5,3463.9,2.88691]
[1721105667685,0.62799148,3464.4,3463.9,2.88691]
[1721105667881,2.88625,3464.7,3463.9,2.88691]
[1721105668086,0.62795443,3464.6,3463.9,2.88691]
[1721105668629,3.51430443,3464.6,3463.9,2.88691]
[1721105668786,0.62795443,3464.5,3463.9,2.88691]
[1721105669595,2.88656,3464.4,3463.8,2.3301]
[1721105669922,0.62795443,3464.3,3463.8,2.3301]
[1721105670082,0.6273206,3464.2,3463.8,2.3301]
[1721105670284,2.88656,3464.4,3463.8,2.3301]
[1721105670686,0.62726619,3464.3,3463.8,2.3301]
[1721105671399,4.38239661,3464.7,3463.8,6.34107]
[1721105671589,0.62736393,3464.6,3463.9,2.88691]
[1721105672089,3.51373393,3464.6,3463.9,2.88691]
[1721105672288,0.62736393,3464.5,3463.9,2.88691]
[1721105673121,0.62730181,3464.4,3463.9,2.88691]
[1721105673312,0.62730181,3464.3,3463.9,2.88691]
[1721105673619,0.62732411,3464.2,3463.9,2.88691]
[1721105673821,2.88637,3464.6,3463.9,2.88691]
[1721105674029,0.62730178,3464.5,3463.9,2.88691]
[1721105676838,0.6276246,3464.4,3463.9,2.88691]
[1721105677131,0.6276246,3464.3,3463.9,2.88691]
[1721105677341,0.6276246,3464.2,3463.9,2.88691]
[1721105677502,1.49775372,3464.5,3463.9,2.88691]
[1721105677503,0.6276246,3464.1,3463.9,2.88691]
[1721105677692,0.6276246,3464.0,3463.9,2.88691]
[1721105677892,0.62766265,3464.0,3463.9,2.88691]
[1721105678112,0.62766265,3464.4,3463.9,2.88691]
[1721105679038,0.62766265,3464.3,3463.9,2.88691]
[1721105679237,0.62766265,3464.2,3463.9,2.88691]
[1721105679538,0.62766265,3464.1,3463.9,2.88691]
[1721105679698,2.88637,3464.6,3463.9,2.88691]
[1721105679900,0.62727424,3464.5,3463.9,2.88691]
[1721105680094,1.124,3464.8,3463.9,2.88691]
[1721105680326,2.12410634,3464.7,3463.9,2.88691]
[1721105680535,0.6272812,3464.6,3463.9,2.88691]
[1721105681325,0.6272812,3464.6,3464.1,2.8867]
[1721105682354,0.6272812,3464.5,3464.1,2.8867]
[1721105682552,0.6272812,3464.4,3464.1,2.8867]
[1721105682722,0.6272812,3464.3,3464.1,2.8867]
[1721105683051,0.62721675,3464.2,3464.1,2.8867]
[1721105683409,1.75648,3464.8,3464.1,2.8867]
[1721105683608,3.96102245,3464.7,3464.1,2.8867]
[1721105683822,0.62717477,3464.6,3464.1,2.8867]
[1721105684315,6.13405655,3464.6,3463.8,5.21709]
[1721105684538,2.2989,3464.4,3463.8,5.21709]
[1721105684889,0.62717477,3464.3,3463.8,5.21709]
[1721105686813,0.62717477,3464.2,3463.8,5.21709]
[1721105687040,0.62716153,3464.1,3463.8,6.439915]
[1721105687245,6.66858178,3464.7,3463.8,6.439915]
[1721105687516,0.62714756,3464.6,3463.8,5.21709]
[1721105688954,2.12362934,3464.6,3463.8,5.21709]
[1721105689254,0.62714756,3464.5,3463.8,5.21709]
[1721105689447,0.62714756,3464.4,3463.8,5.21709]
[1721105689649,0.62714756,3464.3,3463.8,5.21709]
[1721105689869,0.62714756,3464.2,3463.8,5.21709]
[1721105690049,2.88634,3464.6,3463.8,5.21709]
[1721105690359,1.69502383,3464.5,3463.8,5.21709]
[1721105690581,0.62713301,3464.4,3463.8,5.21709]
[1721105693537,0.62710448,3464.3,3463.8,5.21709]
[1721105693739,0.62710448,3464.2,3463.8,5.21709]
[1721105693967,2.88634,3464.6,3463.8,5.21709]
[1721105694267,0.62710894,3464.5,3463.8,5.21709]
[1721105696971,0.62714421,3464.4,3463.8,5.21709]
[1721105697272,0.62714421,3464.3,3463.8,5.21709]
[1721105697472,5.45051603,3464.6,3463.8,5.21709]
[1721105697473,0.62714421,3464.2,3463.8,5.21709]
[1721105697764,0.62714421,3464.1,3463.8,5.21709]
[1721105697954,5.45051603,3464.6,3463.8,5.21709]
[1721105698270,1.80181825,3464.5,3463.8,5.21709]
[1721105698436,0.62716965,3464.4,3463.8,5.21709]
[1721105700269,0.62738138,3464.3,3463.8,5.21709]
[1721105700451,0.62738138,3464.2,3463.8,5.21709]
[1721105700649,0.62747383,3464.1,3463.8,2.3301]
[1721105700848,1.75147383,3464.0,3463.5,3.0]
[1721105701162,1.75147383,3464.0,3463.4,7.27]
[1721105701163,0.62747383,3463.9,3463.4,7.27]
[1721105701362,0.62747383,3463.9,3463.3,2.8874]
[1721105701532,0.62747383,3463.9,3463.4,3.0]
[1721105702446,0.62747383,3463.9,3463.3,5.261]
[1721105702632,0.62775602,3463.8,3463.3,5.261]
[1721105702834,0.62775602,3463.7,3463.3,5.261]
[1721105703058,2.88684,3464.0,3463.3,5.261]
[1721105703373,0.62777148,3463.9,3463.3,5.261]
[1721105704777,0.62777148,3463.9,3463.4,2.88732]
[1721105704952,2.3954,3464.2,3463.4,2.88732]
[1721105705153,0.62783055,3464.1,3463.4,2.88732]
[1721105705349,0.62783055,3464.1,3463.5,4.01124]
[1721105705561,0.62783055,3464.0,3463.7,2.347]
[1721105705739,0.62785172,3463.9,3463.7,3.471]
[1721105705941,2.8865,3464.4,3463.7,3.471]
[1721105706172,3.51443661,3464.3,3463.7,2.347]
[1721105706469,2.12579154,3464.2,3463.4,5.29923]
[1721105706669,0.62784661,3464.1,3463.4,5.29923]
[1721105707079,0.62784661,3464.1,3463.5,2.88724]
[1721105708957,3.04084661,3464.1,3463.5,2.88724]
[1721105709241,0.62825683,3464.0,3463.5,2.88724]
[1721105710341,0.62825683,3464.0,3463.2,2.88749]
[1721105710575,0.62825683,3464.0,3463.3,3.0]
[1721105710778,0.62825683,3464.0,3463.4,2.88729]
[1721105710965,4.37017184,3464.0,3463.1,2.4262]
[1721105711176,0.62825683,3463.9,3463.2,2.88743]
[1721105711359,0.62825683,3463.9,3463.3,2.8874]
[1721105712480,2.88683,3464.0,3463.3,2.8874]
[1721105712664,0.62867583,3463.9,3463.3,2.8874]
[1721105712867,2.88683,3464.0,3463.3,2.8874]
[1721105713183,0.62869291,3463.9,3463.3,2.8874]
[1721105713545,0.62869291,3463.8,3463.3,2.8874]
[1721105713753,2.413,3464.1,3463.3,2.8874]
[1721105713953,0.628664,3464.0,3463.3,2.8874]
[1721105714495,0.628664,3464.0,3463.4,2.88732]
[1721105715251,5.29977,3464.1,3463.4,2.88732]
[1721105715600,0.62869279,3464.0,3463.4,2.88732]
[1721105715753,0.62870459,3463.9,3463.5,2.3948]
[1721105715949,2.88659,3464.3,3463.5,2.3948]
[1721105715950,0.62870379,3463.8,3463.5,5.28204]
[1721105716257,4.38644677,3464.3,3463.5,5.28204]
[1721105716452,0.62872483,3464.2,3463.5,6.40604]
[1721105718382,0.62872483,3464.2,3463.5,5.28204]
[1721105719086,2.1299151,3464.1,3463.5,2.3948]
[1721105719286,0.62910993,3464.0,3463.5,2.3948]
[1721105719489,0.62910993,3464.0,3463.3,5.3425]
[1721105719792,0.62910993,3463.9,3463.3,5.3425]
[1721105719992,0.62910993,3463.8,3463.3,5.3425]
[1721105720285,0.62910993,3463.7,3463.4,2.88733]
[1721105720493,6.66261533,3464.2,3463.4,2.88733]
[1721105720494,0.62892273,3463.6,3463.4,2.88733]
[1721105720792,6.66261533,3464.2,3463.4,2.88733]
[1721105720793,5.51150517,3464.2,3463.4,2.88733]
[1721105721090,0.6289244,3464.1,3463.4,2.88733]
[1721105721288,2.12972957,3464.1,3463.4,2.88733]
[1721105721590,0.6289244,3464.0,3463.4,2.88733]
[1721105721796,0.6289244,3463.9,3463.4,2.88733]
[1721105722095,0.6289244,3463.8,3463.3,8.22991]
[1721105722295,2.88689,3464.0,3463.3,8.22991]
[1721105722502,0.62903444,3463.9,3463.3,8.22991]
[1721105722859,0.62911847,3463.8,3463.3,8.22991]
[1721105723061,0.62911847,3463.7,3463.3,8.22991]
[1721105723260,0.62911847,3463.6,3463.3,8.22991]
[1721105723596,2.88689,3464.0,3463.3,5.3425]
[1721105723806,0.62914663,3463.9,3463.3,5.3425]
[1721105724095,0.62914663,3463.9,3463.3,8.2299]
[1721105725294,0.62914663,3463.8,3463.4,2.88733]
[1721105725457,2.88668,3464.2,3463.5,2.88723]
[1721105725655,0.62907884,3464.1,3463.5,2.88723]
[1721105725859,0.62907884,3464.1,3463.5,4.111352]